[Event "3rd FIDE WCCC Rapid G12 2019"]
[Site "Minsk"]
[Date "2019.08.16"]
[Round "2.2"]
[White "Misiuk, Monika"]
[Black "Kirdyashkina, Ekaterina"]
[Result "0-1"]
[ECO "D35"]
[WhiteElo "1339"]
[BlackElo "1691"]
[Annotator "NA"]
[PlyCount "74"]
[EventDate "2019.08.16"]
[EventType "swiss"]
[EventCountry "BLR"]
[SourceTitle "playchess.com"]
[Source "ChessBase"]
[SourceQuality "1"]
[TimeControl "600+5"]

1. d4 {[%emt 0:00:00]} d5 {[%emt 0:00:00]} 2. c4 {[%emt 0:00:00]} e6 {[%emt 0:00:02]} 3. Nc3 {[%emt 0:00:02]} Nf6 {[%emt 0:00:08]} 4. cxd5 {[%emt 0:00:04]} exd5 {[%emt 0:00:02]} 5. Bg5 {[%emt 0:00:05]} Be7 {[%emt 0:00:04]} 6. e3 {[%emt 0:00:02]} h6 {[%emt 0:00:04]} 7. Bh4 {[%emt 0:00:05]} O-O {[%emt 0:00:05]} 8. Bd3 {[%emt 0:00:02]} Nbd7 {[%emt 0:00:03]} 9. Qc2 {[%emt 0:00:04]} b6 {[%emt 0:00:16]} 10. Nf3 {[%emt 0:00:45]} Bb7 {[%emt 0:00:12]} 11. O-O {[%emt 0:00:09]} c5 {[%emt 0:00:01]} 12. a3 {[%emt 0:00:55]} c4 {[%emt 0:00:25]} 13. Be2 {[%emt 0:00:07]} Rc8 {[%emt 0:00:03]} 14. b3 {[%emt 0:01:34]} Ba6 {[%emt 0:00:08]} 15. Rfc1 {[%emt 0:00:59]} cxb3 {[%emt 0:00:30]} 16. Qxb3 {[%emt 0:00:13]} Rxc3 17. Rxc3 {[%emt 0:00:30]} Bxe2 {[%emt 0:00:53]} 18. Bxf6 {[%emt 0:00:27]} Nxf6 {[%emt 0:00:15]} 19. Ne5 {[%emt 0:00:06]} Ne4 {[%emt 0:00:04]} 20. Nc6 {[%emt 0:00:15]} Qd6 {[%emt 0:00:14]} 21. Nxe7+ {[%emt 0:00:04]} Qxe7 {[%emt 0:00:03]} 22. Rc2 {[%emt 0:00:13]} Bc4 {[%emt 0:00:01]} 23. Qa4 {[%emt 0:00:43]} a5 {[%emt 0:01:37]} 24. f3 {[%emt 0:00:33]} Nd6 {[%emt 0:00:11]} 25. Rc3 {[%emt 0:00:19]} Qc7 {[%emt 0:00:58]} 26. Rac1 {[%emt 0:00:19]} b5 {[%emt 0:00:05]} 27. Qc2 {[%emt 0:00:21]} b4 {[%emt 0:00:01]} 28. axb4 {[%emt 0:00:21]} axb4 {[%emt 0:00:01]} 29. Rb3 {[%emt 0:00:04]} Qa5 {[%emt 0:00:08]} 30. Rb2 {[%emt 0:00:13]} b3 {[%emt 0:00:08]} 31. Qd1 {[%emt 0:00:16]} Nb5 {[%emt 0:00:05]} 32. Ra1 {[%emt 0:00:21]} Qc3 {[%emt 0:00:01]} 33. Qd2 {[%emt 0:00:12]} Qxd2 34. Rxd2 {[%emt 0:00:02]} Nc3 {[%emt 0:00:15]} 35. e4 {[%emt 0:00:26]} dxe4 {[%emt 0:00:37]} 36. Rc1 {[%emt 0:00:02]} e3 {[%emt 0:00:01]} 37. Rb2 {[%emt 0:00:21]} Ne2+ {[%emt 0:00:01]} 0-1

[Event "3rd FIDE WCCC Rapid G12 2019"]
[Site "Minsk"]
[Date "2019.08.16"]
[Round "2.3"]
[White "Ivanytska, Liudmyla"]
[Black "Kaldarova, Ayaulym"]
[Result "1-0"]
[ECO "C01"]
[WhiteElo "1539"]
[BlackElo "1549"]
[Annotator "NA"]
[PlyCount "173"]
[EventDate "2019.08.16"]
[EventType "swiss"]
[EventCountry "BLR"]
[SourceTitle "playchess.com"]
[Source "ChessBase"]
[SourceQuality "1"]
[TimeControl "600+5"]

1. e4 {[%emt 0:00:00]} e6 {[%emt 0:00:00]} 2. d4 {[%emt 0:00:00]} d5 {[%emt 0:00:00]} 3. exd5 {[%emt 0:00:00]} exd5 {[%emt 0:00:00]} 4. Bd3 {[%emt 0:00:03]} Nf6 {[%emt 0:00:08]} 5. c3 {[%emt 0:00:01]} c5 {[%emt 0:00:02]} 6. dxc5 {[%emt 0:00:02]} Bxc5 {[%emt 0:00:02]} 7. Nf3 {[%emt 0:00:02]} O-O {[%emt 0:00:12]} 8. O-O {[%emt 0:00:02]} Bg4 {[%emt 0:00:03]} 9. h3 {[%emt 0:00:07]} Bh5 {[%emt 0:00:01]} 10. Bf4 {[%emt 0:00:06]} Nc6 {[%emt 0:00:11]} 11. Nbd2 {[%emt 0:00:07]} Qd7 {[%emt 0:00:47]} 12. Qc2 {[%emt 0:00:10]} Bg6 {[%emt 0:00:42]} 13. Bxg6 {[%emt 0:00:23]} fxg6 {[%emt 0:00:02]} 14. Nb3 {[%emt 0:00:05]} Bb6 {[%emt 0:00:04]} 15. Rad1 {[%emt 0:00:02]} Rad8 {[%emt 0:00:24]} 16. Nbd4 {[%emt 0:00:07]} Ne4 {[%emt 0:00:36]} 17. Be3 {[%emt 0:00:13]} Qf7 {[%emt 0:00:16]} 18. Nxc6 bxc6 {[%emt 0:00:03]} 19. Bxb6 {[%emt 0:00:46]} axb6 {[%emt 0:00:02]} 20. c4 {[%emt 0:00:15]} Nf6 {[%emt 0:00:53]} 21. Qb3 {[%emt 0:00:21]} dxc4 {[%emt 0:00:08]} 22. Qxb6 {[%emt 0:00:07]} Rb8 {[%emt 0:00:09]} 23. Qxc6 {[%emt 0:00:02]} Rxb2 {[%emt 0:00:21]} 24. Ne5 {[%emt 0:00:05]} Qa7 {[%emt 0:01:02]} 25. Qxc4+ {[%emt 0:00:08]} Kh8 {[%emt 0:00:02]} 26. Rd8 {[%emt 0:01:18]} Rxd8 {[%emt 0:02:17]} 27. Nf7+ {[%emt 0:00:05]} Kg8 {[%emt 0:00:25]} 28. Nxd8+ {[%emt 0:00:02]} Kh8 {[%emt 0:00:02]} 29. Nf7+ {[%emt 0:00:01]} Kg8 {[%emt 0:00:03]} 30. Ng5+ {[%emt 0:00:04]} Kh8 {[%emt 0:00:08]} 31. Qc8+ {[%emt 0:00:25]} Ng8 {[%emt 0:00:03]} 32. Qf8 {[%emt 0:00:03]} h6 {[%emt 0:00:48]} 33. Nf7+ {[%emt 0:00:02]} Kh7 {[%emt 0:00:00]} 34. Ne5 {[%emt 0:00:03]} Nf6 {[%emt 0:00:35]} 35. Qd6 {[%emt 0:00:54]} Rb6 {[%emt 0:01:09]} 36. Qd3 {[%emt 0:00:04]} Nh5 {[%emt 0:00:27]} 37. Nd7 {[%emt 0:00:37]} Nf4 {[%emt 0:00:47]} 38. Qe3 Qxd7 {[%emt 0:00:07]} 39. Qxb6 {[%emt 0:00:58]} Qd3 {[%emt 0:00:05]} 40. Qe3 {[%emt 0:00:08]} Qd6 {[%emt 0:00:02]} 41. a4 {[%emt 0:00:05]} g5 {[%emt 0:00:05]} 42. Re1 {[%emt 0:00:04]} Ng6 {[%emt 0:00:09]} 43. a5 {[%emt 0:00:04]} Qc6 {[%emt 0:00:04]} 44. Qe4 {[%emt 0:00:06]} Qa6 {[%emt 0:00:04]} 45. Rd1 {[%emt 0:00:19]} Qxa5 {[%emt 0:00:07]} 46. Rd6 {[%emt 0:00:04]} Qa1+ {[%emt 0:00:01]} 47. Kh2 {[%emt 0:00:02]} Qe5+ {[%emt 0:00:02]} 48. Qxe5 {[%emt 0:00:05]} Nxe5 {[%emt 0:00:02]} 49. Kg3 {[%emt 0:00:04]} h5 {[%emt 0:00:05]} 50. Rd5 {[%emt 0:00:21]} Nf7 {[%emt 0:00:02]} 51. h4 {[%emt 0:00:04]} gxh4+ {[%emt 0:00:02]} 52. Kxh4 {[%emt 0:00:01]} g6 {[%emt 0:00:03]} 53. f4 {[%emt 0:00:03]} Kh6 {[%emt 0:00:10]} 54. g4 {[%emt 0:00:09]} hxg4 {[%emt 0:00:04]} 55. Kxg4 {[%emt 0:00:02]} Kg7 {[%emt 0:00:12]} 56. Ra5 {[%emt 0:00:08]} Nh6+ {[%emt 0:00:04]} 57. Kg5 {[%emt 0:00:03]} Nf7+ {[%emt 0:00:01]} 58. Kh4 {[%emt 0:00:01]} Kf6 {[%emt 0:00:06]} 59. Ra7 {[%emt 0:00:08]} Kg7 {[%emt 0:00:12]} 60. Kg4 {[%emt 0:00:02]} Kf6 {[%emt 0:00:04]} 61. Ra6+ {[%emt 0:00:34]} Kg7 {[%emt 0:00:03]} 62. Kf3 {[%emt 0:00:02]} Nh6 {[%emt 0:00:06]} 63. Ke4 {[%emt 0:00:05]} Nf7 {[%emt 0:00:04]} 64. Rb6 {[%emt 0:00:07]} Nh6 {[%emt 0:00:09]} 65. Ke5 {[%emt 0:00:02]} Nf5 {[%emt 0:00:01]} 66. Rb7+ {[%emt 0:00:05]} Kh6 {[%emt 0:00:03]} 67. Rb1 {[%emt 0:00:04]} Kg7 {[%emt 0:00:08]} 68. Rb7+ {[%emt 0:00:01]} Kh6 {[%emt 0:00:01]} 69. Kf6 {[%emt 0:00:01]} Kh5 {[%emt 0:00:14]} 70. Rb2 {[%emt 0:00:19]} Ng3 71. Rb4 {[%emt 0:00:36]} Nf5 {[%emt 0:00:11]} 72. Rb3 {[%emt 0:00:09]} Kg4 {[%emt 0:00:05]} 73. Rb4 {[%emt 0:00:28]} Kh5 {[%emt 0:00:01]} 74. Rb1 {[%emt 0:00:07]} Ng3 {[%emt 0:00:06]} 75. Rg1 {[%emt 0:00:11]} Kg4 {[%emt 0:00:10]} 76. Ke5 {[%emt 0:00:08]} Kf3 {[%emt 0:00:01]} 77. Ra1 {[%emt 0:00:12]} Nf5 {[%emt 0:00:03]} 78. Rf1+ {[%emt 0:00:07]} Kg4 {[%emt 0:00:03]} 79. Rg1+ {[%emt 0:00:02]} Kh5 {[%emt 0:00:02]} 80. Rg5+ {[%emt 0:00:05]} Kh6 {[%emt 0:00:07]} 81. Rxf5 {[%emt 0:00:01]} gxf5 {[%emt 0:00:01]} 82. Kxf5 {[%emt 0:00:01]} Kg7 {[%emt 0:00:01]} 83. Ke6 {[%emt 0:00:03]} Kf8 {[%emt 0:00:01]} 84. f5 {[%emt 0:00:29]} Ke8 {[%emt 0:00:04]} 85. f6 {[%emt 0:00:02]} Kf8 {[%emt 0:00:03]} 86. f7 {[%emt 0:00:01]} Kg7 {[%emt 0:00:02]} 87. Ke7 1-0

[Event "3rd FIDE WCCC Rapid G12 2019"]
[Site "Minsk"]
[Date "2019.08.16"]
[Round "2.4"]
[White "Marchenko, Yelyzaveta"]
[Black "Lomakina, Anzhelika"]
[Result "0-1"]
[ECO "C50"]
[WhiteElo "1466"]
[BlackElo "1732"]
[Annotator "NA"]
[PlyCount "58"]
[EventDate "2019.08.16"]
[EventType "swiss"]
[EventCountry "BLR"]
[SourceTitle "playchess.com"]
[Source "ChessBase"]
[SourceQuality "1"]
[TimeControl "600+5"]

1. e4 {[%emt 0:00:00]} e5 {[%emt 0:00:00]} 2. Nf3 {[%emt 0:00:00]} Nc6 {[%emt 0:00:00]} 3. Bc4 {[%emt 0:00:00]} Bc5 {[%emt 0:00:00]} 4. d3 {[%emt 0:00:01]} d6 {[%emt 0:00:03]} 5. c3 {[%emt 0:00:01]} h6 {[%emt 0:00:55]} 6. a4 {[%emt 0:00:05]} a5 {[%emt 0:00:31]} 7. O-O {[%emt 0:00:05]} Nf6 {[%emt 0:00:07]} 8. Nbd2 {[%emt 0:00:02]} O-O {[%emt 0:00:43]} 9. Re1 {[%emt 0:00:03]} Re8 {[%emt 0:02:23]} 10. Nf1 {[%emt 0:00:16]} Bb6 {[%emt 0:01:05]} 11. Be3 {[%emt 0:00:06]} d5 {[%emt 0:01:05]} 12. exd5 {[%emt 0:01:42]} Nxd5 {[%emt 0:00:02]} 13. Bxb6 {[%emt 0:00:30]} Nxb6 {[%emt 0:00:19]} 14. Bb5 {[%emt 0:00:11]} Qd6 {[%emt 0:00:58]} 15. Ng3 {[%emt 0:00:34]} Bd7 {[%emt 0:01:08]} 16. Ne4 {[%emt 0:01:19]} Qg6 {[%emt 0:00:11]} 17. Nc5 {[%emt 0:00:12]} Bh3 {[%emt 0:01:13]} 18. g3 {[%emt 0:00:30]} Rab8 {[%emt 0:00:31]} 19. Nxb7 {[%emt 0:00:16]} Rxb7 {[%emt 0:00:11]} 20. Bxc6 Qxc6 {[%emt 0:00:01]} 21. Qe2 {[%emt 0:00:21]} Bg4 {[%emt 0:00:09]} 22. Qe4 {[%emt 0:00:08]} Bxf3 {[%emt 0:00:06]} 23. Qxc6 {[%emt 0:00:01]} Bxc6 {[%emt 0:00:01]} 24. Re3 {[%emt 0:00:01]} Rbb8 {[%emt 0:00:09]} 25. Rae1 {[%emt 0:00:01]} Nxa4 {[%emt 0:00:02]} 26. Rxe5 {[%emt 0:00:02]} Rxe5 {[%emt 0:00:01]} 27. Rxe5 {[%emt 0:00:01]} Rxb2 {[%emt 0:00:06]} 28. h4 {[%emt 0:00:01]} Rb1+ {[%emt 0:00:01]} 29. Kh2 {[%emt 0:00:02]} Rh1# {[%emt 0:00:02]} 0-1

[Event "3rd FIDE WCCC Rapid G12 2019"]
[Site "Minsk"]
[Date "2019.08.16"]
[Round "2.5"]
[White "Basova, Yuliya"]
[Black "Korovina, Yana"]
[Result "0-1"]
[ECO "C42"]
[WhiteElo "1699"]
[BlackElo "1602"]
[Annotator "NA"]
[PlyCount "58"]
[EventDate "2019.08.16"]
[EventType "swiss"]
[EventCountry "BLR"]
[SourceTitle "playchess.com"]
[Source "ChessBase"]
[SourceQuality "1"]
[TimeControl "600+5"]

1. e4 {[%emt 0:00:00]} e5 {[%emt 0:00:00]} 2. Nf3 {[%emt 0:00:00]} Nf6 {[%emt 0:00:00]} 3. Nxe5 {[%emt 0:00:03]} d6 {[%emt 0:00:00]} 4. Nf3 {[%emt 0:00:01]} Nxe4 {[%emt 0:00:00]} 5. Nc3 {[%emt 0:00:02]} Nxc3 {[%emt 0:00:01]} 6. dxc3 {[%emt 0:00:02]} Be7 {[%emt 0:00:01]} 7. Be3 {[%emt 0:00:04]} Nc6 {[%emt 0:00:05]} 8. Qd2 {[%emt 0:00:02]} O-O {[%emt 0:00:02]} 9. O-O-O {[%emt 0:00:04]} Be6 {[%emt 0:00:03]} 10. Kb1 {[%emt 0:00:03]} Ne5 {[%emt 0:00:11]} 11. Nd4 {[%emt 0:00:18]} Bc4 {[%emt 0:00:52]} 12. Qc1 {[%emt 0:01:06]} Bxf1 {[%emt 0:00:20]} 13. Rhxf1 {[%emt 0:00:08]} Qd7 {[%emt 0:00:21]} 14. f3 {[%emt 0:01:05]} Nc4 {[%emt 0:00:40]} 15. Bf2 {[%emt 0:00:22]} h6 {[%emt 0:00:44]} 16. h4 {[%emt 0:00:31]} Bf6 {[%emt 0:00:17]} 17. g4 {[%emt 0:00:21]} Rae8 {[%emt 0:01:39]} 18. g5 {[%emt 0:00:11]} hxg5 {[%emt 0:00:52]} 19. hxg5 {[%emt 0:00:03]} Bxd4 {[%emt 0:00:05]} 20. Bxd4 {[%emt 0:00:10]} Qf5 {[%emt 0:00:03]} 21. Rh1 {[%emt 0:01:42]} c5 {[%emt 0:00:33]} 22. Bf2 {[%emt 0:01:06]} Re2 {[%emt 0:00:03]} 23. Bg1 {[%emt 0:01:01]} Rfe8 {[%emt 0:00:40]} 24. Rh2 {[%emt 0:01:45]} b5 {[%emt 0:00:29]} 25. Rxe2 {[%emt 0:00:20]} Rxe2 {[%emt 0:00:02]} 26. b3 {[%emt 0:00:15]} Na3+ {[%emt 0:00:09]} 27. Ka1 {[%emt 0:00:17]} Nxc2+ {[%emt 0:00:03]} 28. Kb2 {[%emt 0:00:17]} Nb4+ {[%emt 0:00:09]} 29. Ka1 {[%emt 0:00:05]} Rxa2# {[%emt 0:00:02]} 0-1

[Event "3rd FIDE WCCC Rapid G12 2019"]
[Site "Minsk"]
[Date "2019.08.16"]
[Round "2.6"]
[White "Putinceva, Marina"]
[Black "Vlasova, Olesia"]
[Result "0-1"]
[ECO "B34"]
[WhiteElo "1476"]
[BlackElo "1799"]
[Annotator "NA"]
[PlyCount "55"]
[EventDate "2019.08.16"]
[EventType "swiss"]
[EventCountry "BLR"]
[SourceTitle "playchess.com"]
[Source "ChessBase"]
[SourceQuality "1"]
[TimeControl "600+5"]

1. e4 {[%emt 0:00:00]} c5 {[%emt 0:00:00]} 2. Nf3 {[%emt 0:00:00]} Nc6 {[%emt 0:00:00]} 3. d4 {[%emt 0:00:00]} cxd4 {[%emt 0:00:00]} 4. Nxd4 g6 5. Nc3 {[%emt 0:00:21]} Bg7 {[%emt 0:00:01]} 6. Be3 {[%emt 0:00:02]} Nf6 {[%emt 0:00:01]} 7. f3 {[%emt 0:00:09]} O-O {[%emt 0:00:02]} 8. Qd2 {[%emt 0:00:01]} d5 {[%emt 0:00:02]} 9. O-O-O {[%emt 0:00:24]} dxe4 {[%emt 0:00:42]} 10. Nxc6 {[%emt 0:01:33]} Qxd2+ {[%emt 0:00:02]} 11. Rxd2 bxc6 12. Nxe4 {[%emt 0:00:12]} Nxe4 {[%emt 0:00:05]} 13. fxe4 {[%emt 0:00:01]} Be6 {[%emt 0:00:18]} 14. a3 {[%emt 0:01:09]} Rab8 {[%emt 0:00:21]} 15. c3 {[%emt 0:00:46]} Rb7 {[%emt 0:00:21]} 16. Ba6 {[%emt 0:01:36]} Rb3 {[%emt 0:00:27]} 17. Bf4 {[%emt 0:00:49]} Rb6 {[%emt 0:00:25]} 18. Be2 {[%emt 0:00:25]} a5 {[%emt 0:00:40]} 19. Be3 {[%emt 0:01:17]} Rb3 {[%emt 0:00:41]} 20. Bd1 {[%emt 0:00:57]} Rb7 {[%emt 0:00:42]} 21. Bf4 {[%emt 0:00:10]} f5 {[%emt 0:01:04]} 22. e5 {[%emt 0:00:41]} Bd5 {[%emt 0:00:18]} 23. Bf3 {[%emt 0:00:30]} Bxf3 {[%emt 0:00:44]} 24. gxf3 {[%emt 0:00:00]} Rb5 {[%emt 0:00:25]} 25. Re1 {[%emt 0:00:19]} Rfb8 {[%emt 0:00:45]} 26. e6 {[%emt 0:00:29]} Re8 {[%emt 0:01:03]} 27. Rd7 {[%emt 0:00:16]} Bf6 {[%emt 0:00:41]} 28. Rc7 0-1

[Event "3rd FIDE WCCC Rapid G12 2019"]
[Site "Minsk"]
[Date "2019.08.16"]
[Round "3.1"]
[White "Babic, Milana"]
[Black "Shubenkova, Veronika"]
[Result "0-1"]
[ECO "A06"]
[WhiteElo "1689"]
[BlackElo "1740"]
[Annotator "NA"]
[PlyCount "88"]
[EventDate "2019.08.16"]
[EventType "swiss"]
[EventCountry "BLR"]
[SourceTitle "playchess.com"]
[Source "ChessBase"]
[SourceQuality "1"]
[TimeControl "600+5"]

1. Nf3 {[%emt 0:00:00]} d5 {[%emt 0:00:00]} 2. g3 {[%emt 0:00:00]} e6 {[%emt 0:00:00]} 3. Bg2 {[%emt 0:00:00]} f5 {[%emt 0:00:03]} 4. d4 {[%emt 0:00:05]} Nf6 {[%emt 0:00:02]} 5. c4 {[%emt 0:00:06]} c6 {[%emt 0:00:01]} 6. O-O {[%emt 0:00:03]} Bd6 {[%emt 0:00:05]} 7. c5 {[%emt 0:00:01]} Bc7 {[%emt 0:00:02]} 8. Nc3 {[%emt 0:00:12]} Nbd7 {[%emt 0:00:03]} 9. Bf4 {[%emt 0:00:01]} O-O {[%emt 0:00:21]} 10. b4 {[%emt 0:00:04]} Ne4 {[%emt 0:00:03]} 11. Nxe4 {[%emt 0:01:08]} fxe4 {[%emt 0:00:02]} 12. Ng5 {[%emt 0:00:30]} Re8 {[%emt 0:00:25]} 13. e3 {[%emt 0:00:51]} Nf6 {[%emt 0:00:07]} 14. Nh3 {[%emt 0:01:01]} e5 {[%emt 0:00:03]} 15. dxe5 {[%emt 0:00:12]} Bxe5 {[%emt 0:00:06]} 16. Bxe5 {[%emt 0:00:04]} Rxe5 {[%emt 0:00:03]} 17. Nf4 {[%emt 0:00:01]} Bg4 {[%emt 0:00:17]} 18. Qd4 {[%emt 0:00:45]} Re7 {[%emt 0:00:38]} 19. h3 {[%emt 0:00:19]} Bf3 {[%emt 0:00:49]} 20. a4 {[%emt 0:01:04]} Qf8 {[%emt 0:00:26]} 21. h4 {[%emt 0:00:46]} Nh5 {[%emt 0:01:09]} 22. b5 {[%emt 0:00:14]} Nxf4 {[%emt 0:00:03]} 23. exf4 {[%emt 0:00:08]} Be2 {[%emt 0:00:24]} 24. Rfe1 {[%emt 0:00:13]} Bd3 {[%emt 0:00:06]} 25. Bf1 {[%emt 0:00:05]} Bxf1 {[%emt 0:00:07]} 26. Kxf1 {[%emt 0:00:05]} Qf5 {[%emt 0:00:15]} 27. Kg2 {[%emt 0:00:14]} h6 {[%emt 0:00:12]} 28. Re3 {[%emt 0:00:35]} Rae8 {[%emt 0:00:06]} 29. Rb1 {[%emt 0:00:36]} Rf7 {[%emt 0:00:29]} 30. Rb2 {[%emt 0:00:25]} Ref8 {[%emt 0:00:28]} 31. bxc6 {[%emt 0:00:26]} bxc6 {[%emt 0:00:01]} 32. a5 {[%emt 0:00:25]} g5 {[%emt 0:00:13]} 33. fxg5 {[%emt 0:00:09]} hxg5 {[%emt 0:00:05]} 34. hxg5 {[%emt 0:01:48]} Rh7 35. g4 {[%emt 0:00:00]} Qxg4+ {[%emt 0:01:06]} 36. Rg3 {[%emt 0:00:16]} Qh4 {[%emt 0:00:06]} 37. Rb1 Qh2+ {[%emt 0:00:12]} 38. Kf1 {[%emt 0:00:06]} Qxg3 {[%emt 0:00:56]} 39. g6 {[%emt 0:00:10]} Rh1+ {[%emt 0:00:04]} 40. Ke2 {[%emt 0:00:01]} Qf3+ {[%emt 0:00:02]} 41. Kd2 {[%emt 0:00:01]} Rxb1 {[%emt 0:00:05]} 42. Kc2 {[%emt 0:00:11]} Qb3+ {[%emt 0:00:03]} 43. Kd2 {[%emt 0:00:01]} Rd1+ {[%emt 0:00:01]} 44. Ke2 {[%emt 0:00:04]} Rxd4 0-1

[Event "3rd FIDE WCCC Rapid G12 2019"]
[Site "Minsk"]
[Date "2019.08.16"]
[Round "3.2"]
[White "Kirdyashkina, Ekaterina"]
[Black "Petrova, Elizaveta"]
[Result "1-0"]
[ECO "B40"]
[WhiteElo "1691"]
[BlackElo "1573"]
[Annotator "NA"]
[PlyCount "133"]
[EventDate "2019.08.16"]
[EventType "swiss"]
[EventCountry "BLR"]
[SourceTitle "playchess.com"]
[Source "ChessBase"]
[SourceQuality "1"]
[TimeControl "600+5"]

1. e4 {[%emt 0:00:00]} c5 {[%emt 0:00:00]} 2. Nf3 {[%emt 0:00:02]} e6 {[%emt 0:00:00]} 3. c3 {[%emt 0:00:01]} Nf6 {[%emt 0:00:00]} 4. e5 {[%emt 0:00:03]} Nd5 {[%emt 0:00:00]} 5. d4 {[%emt 0:00:01]} cxd4 {[%emt 0:00:01]} 6. cxd4 {[%emt 0:00:02]} d6 {[%emt 0:00:01]} 7. exd6 {[%emt 0:00:06]} Bxd6 {[%emt 0:00:03]} 8. Bb5+ {[%emt 0:00:05]} Bd7 {[%emt 0:00:09]} 9. Bxd7+ {[%emt 0:00:10]} Qxd7 {[%emt 0:00:10]} 10. O-O {[%emt 0:00:08]} O-O {[%emt 0:00:02]} 11. Nc3 {[%emt 0:00:02]} Nc6 {[%emt 0:00:11]} 12. Nxd5 {[%emt 0:00:08]} exd5 {[%emt 0:00:02]} 13. Bd2 {[%emt 0:00:08]} Rfe8 {[%emt 0:00:14]} 14. Bc3 {[%emt 0:00:18]} Bf4 {[%emt 0:00:31]} 15. Qd3 {[%emt 0:00:10]} g6 {[%emt 0:00:08]} 16. Rad1 {[%emt 0:00:17]} Rad8 {[%emt 0:00:09]} 17. h3 {[%emt 0:00:11]} Qd6 {[%emt 0:00:22]} 18. Qb5 {[%emt 0:00:09]} Qd7 {[%emt 0:00:12]} 19. Rfe1 {[%emt 0:00:19]} a6 {[%emt 0:00:04]} 20. Qb3 {[%emt 0:00:06]} h5 {[%emt 0:00:19]} 21. Qc2 {[%emt 0:00:33]} Rc8 {[%emt 0:00:14]} 22. Qd3 {[%emt 0:00:07]} Rcd8 {[%emt 0:00:09]} 23. g3 {[%emt 0:01:14]} Bb8 {[%emt 0:00:25]} 24. Kg2 {[%emt 0:00:05]} Bc7 {[%emt 0:00:42]} 25. Bd2 {[%emt 0:00:06]} Bd6 {[%emt 0:00:16]} 26. a3 {[%emt 0:00:15]} Bf8 {[%emt 0:00:13]} 27. Bg5 {[%emt 0:00:07]} Rc8 {[%emt 0:00:04]} 28. Ne5 {[%emt 0:00:39]} Nxe5 {[%emt 0:01:04]} 29. dxe5 {[%emt 0:01:31]} Bg7 {[%emt 0:00:06]} 30. Qxd5 Qf5 31. h4 {[%emt 0:01:56]} Rc2 {[%emt 0:01:08]} 32. Rd2 {[%emt 0:00:24]} Rxd2 {[%emt 0:00:34]} 33. Qxd2 {[%emt 0:00:04]} Rxe5 {[%emt 0:00:24]} 34. Rxe5 {[%emt 0:00:27]} Qxe5 {[%emt 0:00:06]} 35. b3 {[%emt 0:00:14]} Qd4 {[%emt 0:00:37]} 36. Qxd4 {[%emt 0:00:05]} Bxd4 {[%emt 0:00:01]} 37. Kf3 {[%emt 0:00:01]} f6 {[%emt 0:00:01]} 38. Be3 {[%emt 0:00:05]} Be5 {[%emt 0:00:03]} 39. Ke4 {[%emt 0:00:03]} Kf7 {[%emt 0:00:05]} 40. Kd5 {[%emt 0:00:01]} Ke7 {[%emt 0:00:15]} 41. Kc5 {[%emt 0:00:15]} Kd7 {[%emt 0:00:24]} 42. Kb6 {[%emt 0:00:03]} Kc8 {[%emt 0:00:01]} 43. Kc5 {[%emt 0:00:19]} Kd7 {[%emt 0:00:22]} 44. a4 {[%emt 0:00:27]} Kc7 {[%emt 0:00:31]} 45. Kd5 {[%emt 0:00:02]} Kd7 {[%emt 0:00:01]} 46. f4 {[%emt 0:00:19]} Bd6 {[%emt 0:00:06]} 47. Bd4 {[%emt 0:00:01]} f5 {[%emt 0:00:52]} 48. Bc3 {[%emt 0:00:11]} b6 {[%emt 0:00:15]} 49. Bd4 {[%emt 0:00:01]} b5 {[%emt 0:00:15]} 50. axb5 {[%emt 0:00:05]} axb5 {[%emt 0:00:01]} 51. Bc5 {[%emt 0:00:06]} Bc7 {[%emt 0:00:10]} 52. Bd4 {[%emt 0:00:41]} Bd6 {[%emt 0:00:04]} 53. Bc5 {[%emt 0:00:08]} Bc7 {[%emt 0:00:01]} 54. b4 {[%emt 0:00:07]} Bb8 {[%emt 0:00:32]} 55. Bd4 {[%emt 0:00:13]} Bd6 {[%emt 0:00:06]} 56. Bc3 {[%emt 0:00:02]} Bf8 {[%emt 0:00:15]} 57. Be1 {[%emt 0:00:16]} Bd6 {[%emt 0:00:12]} 58. Bd2 {[%emt 0:00:12]} Bb8 {[%emt 0:00:20]} 59. Kc5 {[%emt 0:00:03]} Ba7+ {[%emt 0:00:00]} 60. Kxb5 {[%emt 0:00:01]} Bf2 {[%emt 0:00:01]} 61. Ka6 {[%emt 0:00:04]} Bxg3 {[%emt 0:00:11]} 62. b5 {[%emt 0:00:05]} Kc7 {[%emt 0:00:15]} 63. b6+ {[%emt 0:00:02]} Kb8 {[%emt 0:00:01]} 64. b7 {[%emt 0:00:10]} Bh2 {[%emt 0:00:15]} 65. Be3 {[%emt 0:00:02]} Bg3 {[%emt 0:00:04]} 66. Ba7+ {[%emt 0:00:01]} Kc7 {[%emt 0:00:01]} 67. b8=Q+ {[%emt 0:00:03]} 1-0